[Event "125-Jahre Werder Bremen 2024"]
[Site "Bremen"]
[Date "2024.03.06"]
[Round "5.7"]
[White "Reuker, Jari"]
[Black "Kopylov, Daniel"]
[Result "0-1"]
[ECO "E09"]
[WhiteElo "2383"]
[BlackElo "2346"]
[Annotator "TA"]
[PlyCount "118"]
[EventDate "2024.02.26"]
[EventType "swiss"]
[EventCountry "GER"]
[SourceTitle "playchess.com"]
[Source "ChessBase"]
[SourceQuality "1"]
[TimeControl "40/6000+30:1800+30"]

{[%evp 33,118,0,8,9,36,29,27,17,14,24,19,31,14,17,19,3,12,0,12,0,0,0,14,0,21,0,0,0,0,-35,-29,-29,-39,-96,-87,-81,-91,-119,-113,-93,-113,-104,-104,-96,-25,-163,-183,-814,-205,-187,-224,-211,-173,-193,-186,-195,-128,-73,-83,-71,-74,-82,-8,-8,-8,-8,-8,-8,-8,-8,-8,-8,-8,-759,-758,-690,-647,-1001,-961,-29980,-29980,-29982,-29983,-29982,-29983,-29986,-29987]} 1. d4 {[%emt 0:00:03]} Nf6 {[%emt 0:00:10]} 2. c4 {[%emt 0:00:21]} e6 {[%emt 0:00:33]} 3. g3 {[%emt 0:00:27]} d5 {[%emt 0:00:15]} 4. Nf3 {[%emt 0:00:06]} Be7 {[%emt 0:00:30]} 5. Bg2 {[%emt 0:00:08]} O-O {[%emt 0:00:10]} 6. O-O {[%emt 0:00:12]} Nbd7 {[%emt 0:00:43]} 7. Qc2 {[%emt 0:05:14]} c6 {[%emt 0:00:37]} 8. Nbd2 {[%emt 0:00:21]} b6 {[%emt 0:00:51]} 9. Rd1 {[%emt 0:01:00]} Bb7 {[%emt 0:05:52]} 10. e4 {[%emt 0:02:22]} dxc4 $1 {[%emt 0:01:22][%mdl 4] is now more promising than 10...Rc8.} 11. Nxc4 {[%emt 0:05:55]} c5 {[%emt 0:01:22]} 12. e5 {[%emt 0:05:27] E09: Closed Catalan: Main Line: 7 Qc2 c6 8 Nbd2.} Nd5 {[%emt 0:00:31]} 13. h4 {[%emt 0:12:21]} Rc8 {[%emt 0:03:16]} 14. Bg5 {[%emt 0:25:25]} cxd4 {[%emt 0:02:37]} 15. Qe2 $146 {[%emt 0:03:50]} ({Predecessor:} 15. Qb3 Nc5 16. Qa3 b5 17. Nd6 b4 18. Qxa7 Qc7 19. Bxe7 Ra8 20. Qxa8 Rxa8 21. Nxb7 Qxe7 22. Nxc5 Qxc5 23. Rxd4 {0-1 Wilson,E (2183)-Fischer,D (2290) Titled Tuesday intern op 15th June blitz 2021 (3)}) 15... Ba6 {[%emt 0:03:12]} 16. Rxd4 {[%emt 0:02:05]} Rxc4 {[%emt 0:32:06]} 17. Rxc4 {[%emt 0:00:40]} Bxc4 {[%emt 0:00:36]} 18. Qxc4 {[%emt 0:00:06]} h6 {[%emt 0:00:16]} 19. Bd2 {[%emt 0:02:16]} Qc7 {[%emt 0:11:35]} 20. Qe4 {[%emt 0:01:59]} (20. Qxc7 {simplifies} Nxc7 21. Rc1 Nd5 22. Bf1) 20... Rc8 {[%emt 0:07:23]} 21. Rc1 {[%emt 0:01:01]} Qb7 {[%emt 0:05:27]} 22. Rxc8+ {[%emt 0:18:03]} Qxc8 {[%emt 0:00:09]} 23. Bf1 {[%emt 0:00:13]} h5 {[%emt 0:14:46]} 24. Bd3 {[%emt 0:02:05]} g6 {[%emt 0:01:02]} 25. Bc4 {[%emt 0:04:54]} Qc6 {[%emt 0:04:14]} 26. Qe2 {[%emt 0:07:14]} Bc5 {[%emt 0:03:49]} 27. a3 {[%emt 0:00:55]} a5 {[%emt 0:00:16]} 28. Qd3 {[%emt 0:02:34]} Bf8 {[%emt 0:03:26]} 29. Bxd5 {[%emt 0:04:18]} Qxd5 {[%emt 0:00:32]} 30. Qxd5 {[%emt 0:00:02]} exd5 {[%emt 0:00:02]} 31. Kf1 {[%emt 0:00:38]} a4 {[%emt 0:01:49]} 32. Ke2 $1 {[%emt 0:00:20]} Bc5 {[%emt 0:00:13]} 33. Bf4 {[%emt 0:02:54]} (33. Bh6 $15) 33... Kf8 $17 {[%emt 0:00:58]} 34. Bg5 {[%emt 0:00:30]} Ke8 {[%emt 0:00:44]} 35. Ke1 {[%emt 0:00:36]} Nb8 {[%emt 0:01:23]} 36. Ke2 {[%emt 0:01:10]} Nc6 {[%emt 0:00:10]} 37. Be3 {[%emt 0:00:38]} Ke7 {[%emt 0:02:41]} 38. Kd3 {[%emt 0:00:05]} Na5 {[%emt 0:01:33]} (38... Ke6 $17 39. Ng5+ Kxe5 40. Nxf7+ Ke6 41. Ng5+ Kf5) 39. Nd2 {[%emt 0:00:52]} (39. Ng5 $11) 39... Ke6 $19 {[%emt 0:00:17]} 40. f4 $2 {[%emt 0:00:32]} (40. Nf3) 40... Kf5 $2 {[%emt 0:00:44]} (40... Bxe3 41. Kxe3 Nc4+ 42. Nxc4 dxc4) 41. Nf3 $19 {[%emt 0:15:21]} Kg4 {[%emt 0:13:17]} 42. Ng5 {[%emt 0:02:10]} Kxg3 {[%emt 0:00:28]} 43. Nxf7 {[%emt 0:01:05] [#]} Nc6 $1 {[%emt 0:01:35]} 44. e6 {[%emt 0:07:04]} Kxh4 {[%emt 0:02:16]} 45. Bxc5 {[%emt 0:01:29]} ({White should try} 45. Ne5 Ne7 46. Bxc5 bxc5 47. Kc2) 45... bxc5 $17 {[%emt 0:00:12]} 46. Ne5 {[%emt 0:00:33] [#]} Ne7 $1 {[%emt 0:03:24]} 47. Ke2 {[%emt 0:01:00]} Nf5 {[%emt 0:07:09]} (47... Kg3 $6 48. Nxg6 Nf5 (48... Nxg6 $2 49. f5 $18) 49. e7 $14) (47... d4 $17 {Hoping for ...Kg3.} 48. Ke1 c4 (48... Kg3 $2 49. Nxg6 Nf5 50. e7 $19)) 48. Nxg6+ $11 {[%emt 0:03:05]} Kg4 {[%emt 0:00:09]} 49. e7 {[%emt 0:00:04]} Nd6 {[%emt 0:00:31]} 50. Ne5+ {[%emt 0:01:21]} Kf5 {[%emt 0:01:49]} 51. Kf3 {[%emt 0:01:05]} Ke6 {[%emt 0:01:42]} 52. Nd3 {[%emt 0:00:05]} c4 {[%emt 0:00:04]} 53. Nc5+ $2 {[%emt 0:00:28][%mdl 8192]} (53. f5+ $11 Kxf5 (53... Kxe7 54. Nb4 $17) 54. Nc5) 53... Kxe7 $19 {[%emt 0:00:05]} 54. Nxa4 {[%emt 0:00:02]} d4 {[%emt 0:01:37]} 55. Nc5 {[%emt 0:00:39]} h4 {[%emt 0:01:20]} 56. b3 {[%emt 0:00:46]} d3 {[%emt 0:01:03]} 57. bxc4 {[%emt 0:00:33]} d2 {[%emt 0:00:10]} 58. Ke2 {[%emt 0:00:02]} h3 {[%emt 0:00:30]} ({Stronger than} 58... Nxc4 59. Nd3 $11) 59. Nd3 {[%emt 0:01:05]} Ne4 {[%emt 0:00:15]} ({Weaker is} 59... Nxc4 60. Nf2 $17) 0-1

[Event "125-Jahre Werder Bremen 2024"]
[Site "Bremen"]
[Date "2024.03.06"]
[Round "5.8"]
[White "Breutigam, Martin"]
[Black "Soderstrom, Adrian"]
[Result "1-0"]
[ECO "D37"]
[WhiteElo "2359"]
[BlackElo "2288"]
[Annotator "TA"]
[PlyCount "107"]
[EventDate "2024.02.26"]
[EventType "swiss"]
[EventCountry "GER"]
[SourceTitle "playchess.com"]
[Source "ChessBase"]
[SourceQuality "1"]
[TimeControl "40/6000+30:1800+30"]

{[%evp 20,107,33,6,12,10,26,0,26,0,6,-6,0,-16,-22,0,0,-1,0,0,6,8,18,7,12,1,25,46,35,8,7,6,52,51,52,52,84,55,50,49,127,124,100,62,107,139,114,145,126,100,74,76,58,58,65,34,43,52,75,75,431,409,813,1051,1137,1108,1203,900,4133,4133,4133,4133,29970,29971,29971,29972,29973,29972,29974,29975,29976,29977,29977,29977,29978,29979,29980,29981,29982,29982]} 1. d4 {[%emt 0:00:03]} d5 {[%emt 0:00:11]} 2. c4 {[%emt 0:01:13]} e6 {[%emt 0:00:15]} 3. Nc3 {[%emt 0:00:12]} Be7 {[%emt 0:00:13]} 4. Nf3 {[%emt 0:02:51]} Nf6 {[%emt 0:00:04]} 5. e3 {[%emt 0:00:11]} O-O {[%emt 0:01:45]} 6. a3 {[%emt 0:00:44]} Nbd7 {[%emt 0:15:18]} 7. Bd3 {[%emt 0:01:34]} dxc4 {[%emt 0:01:06]} 8. Bxc4 {[%emt 0:00:07]} c5 {[%emt 0:00:15]} 9. O-O {[%emt 0:00:50]} cxd4 {[%emt 0:00:54]} 10. exd4 {[%emt 0:00:35]} Nb6 {[%emt 0:01:44]} 11. Bd3 {[%emt 0:01:48]} Bd7 {[%emt 0:03:09]} 12. Ne5 {[%emt 0:04:59]} Rc8 {[%emt 0:03:37]} 13. Bg5 {[%emt 0:13:49]} Bc6 {[%emt 0:08:43] The position is equal.} 14. Rc1 {[%emt 0:08:11]} (14. Bc2 $5) 14... Nbd5 {[%emt 0:05:36]} 15. Ne2 {[%emt 0:03:57][%cal Bc3e2,Be2d4,Bd4f3][%mdl 32]} h6 {[%emt 0:04:49]} 16. Nxc6 {[%emt 0:02:44]} Rxc6 {[%emt 0:01:15]} 17. Rxc6 {[%emt 0:00:06]} bxc6 {[%emt 0:00:03]} 18. Bd2 {[%emt 0:00:54]} c5 {[%emt 0:02:29]} 19. Qc2 {[%emt 0:04:28]} cxd4 {[%emt 0:09:17]} 20. Nxd4 {[%emt 0:00:34]} Qb6 {[%emt 0:02:18]} 21. Nf3 {[%emt 0:07:42]} Rd8 {[%emt 0:12:56]} 22. b4 {[%emt 0:08:16]} Qc7 {[%emt 0:09:38]} 23. Qxc7 {[%emt 0:10:00]} Nxc7 {[%emt 0:00:03] Excellent horsemanship.} 24. Bc4 {[%emt 0:00:16]} Ncd5 {[%emt 0:04:43]} 25. Re1 {[%emt 0:06:42]} Bd6 {[%emt 0:06:58]} (25... Nb6 $11 26. Bf1 Nfd5) 26. g3 $14 {[%emt 0:01:52]} Bc7 {[%emt 0:06:36][%cal Oe6e5]} 27. Bf1 {[%emt 0:06:04]} Bb6 {[%emt 0:00:44]} 28. Rc1 {[%emt 0:00:48]} Ne4 {[%emt 0:00:50]} 29. Be1 {[%emt 0:00:40]} Ne3 {[%emt 0:01:10] [#]} ({Black should try} 29... Ng5 $14 30. Be2 Nxf3+ 31. Bxf3 Kf8) 30. a4 $1 $16 {[%emt 0:05:53]} (30. fxe3 $2 {loses.} Bxe3+ 31. Kg2 Bxc1 $19) 30... Ng4 {[%emt 0:01:42]} 31. Rc2 {[%emt 0:03:05]} e5 {[%emt 0:06:21]} 32. a5 {[%emt 0:04:02]} Bxf2+ {[%emt 0:00:18]} 33. Bxf2 {[%emt 0:00:22]} Nexf2 {[%emt 0:00:02]} 34. Rxf2 {[%emt 0:00:15]} Nxf2 {[%emt 0:00:02]} 35. Kxf2 {[%emt 0:00:09]} f6 {[%emt 0:00:48]} 36. Ke3 {[%emt 0:02:11]} Kf7 {[%emt 0:00:59]} 37. b5 {[%emt 0:03:16]} Ke6 {[%emt 0:00:04]} 38. g4 {[%emt 0:00:51]} Kd5 {[%emt 0:00:55]} 39. Nd2 {[%emt 0:03:33] b6 would now be deadly. White is more active.} g6 $2 {[%emt 0:01:06][%mdl 8192] A mistake that costs the game.} (39... Kc5 $16 {is more resistant.}) 40. Bg2+ $18 {[%emt 0:01:08]} Kc5 {[%emt 0:00:30] [#]} (40... e4 $142 41. Bxe4+ (41. Nxe4 Re8 $18) 41... Kd6 42. Bxg6 Kc5) 41. b6 $1 {[%emt 0:31:03][%mdl 512]} axb6 {[%emt 0:17:44] [#]} 42. a6 $1 {[%emt 0:00:00]} f5 {[%emt 0:00:10]} 43. a7 {[%emt 0:00:00]} fxg4 {[%emt 0:02:21]} 44. a8=Q {[%emt 0:00:00]} Rxa8 {[%emt 0:00:02]} 45. Bxa8 {[%emt 0:00:00] White wants to mate with Ne4+.} h5 {[%emt 0:00:09][%cal Bh6h5,Bh5h4][%mdl 32]} 46. Be4 {[%emt 0:00:00] White mates.} g5 {[%emt 0:00:16]} 47. Bg6 {[%emt 0:00:00]} h4 {[%emt 0:00:02]} 48. Ne4+ {[%emt 0:00:00]} Kc4 {[%emt 0:00:03]} 49. Nxg5 {[%emt 0:00:00]} b5 {[%emt 0:00:14][%cal Bb6b5,Bb5b4,Bb4b3,Bb3b2][%mdl 32]} 50. Bf5 {[%emt 0:00:00]} g3 {[%emt 0:00:11]} 51. h3 {[%emt 0:00:00]} b4 {[%emt 0:00:06]} 52. Nf3 {[%emt 0:00:00]} b3 {[%emt 0:00:42]} 53. Nxh4 {[%emt 0:00:00]} b2 {[%emt 0:00:03]} 54. Ng2 {[%emt 0:00:00] Weighted Error Value: White=0.09 (flawless) /Black=0.45.  Loses game:     	---       	Black=1      Mistake:       	---       	Black=3      Inaccurate:     	White=6     	Black=3      OK:         	White=10    	Black=5      Strong:       	White=1     	---        Brilliant:      	White=1     	---} 1-0

[Event "125-Jahre Werder Bremen 2024"]
[Site "Bremen"]
[Date "2024.03.06"]
[Round "5.9"]
[White "Knaak, Rainer"]
[Black "Krastev, Alexander"]
[Result "0-1"]
[ECO "E43"]
[WhiteElo "2450"]
[BlackElo "2457"]
[Annotator "TA"]
[PlyCount "70"]
[EventDate "2024.02.26"]
[EventType "swiss"]
[EventCountry "GER"]
[SourceTitle "playchess.com"]
[Source "ChessBase"]
[SourceQuality "1"]
[TimeControl "40/6000+30:1800+30"]

{[%evp 14,69,25,27,25,25,41,40,67,27,85,0,-16,-29,-20,-35,-45,-64,-40,-56,-2,-12,-16,-229,-227,-242,-218,-303,-295,-298,-230,-227,-215,-209,-188,-228,-170,-296,-308,-282,-267,-362,-350,-425,-427,-497,-496,-883,-845,-1064,-872,-1070,-1050,-991,-902,-889,-703,-675]} 1. d4 {[%emt 0:00:04]} Nf6 {[%emt 0:00:05]} 2. c4 {[%emt 0:00:09]} e6 {[%emt 0:00:04]} 3. Nc3 {[%emt 0:00:19]} Bb4 {[%emt 0:00:06]} 4. e3 {[%emt 0:00:38]} b6 {[%emt 0:00:05]} 5. Bd3 {[%emt 0:00:38]} Bb7 {[%emt 0:00:26]} 6. Nf3 {[%emt 0:00:09]} Bxc3+ {[%emt 0:00:43]} 7. bxc3 {[%emt 0:00:05]} d6 {[%emt 0:00:09]} 8. O-O {[%emt 0:20:54]} Nbd7 {[%emt 0:07:44]} 9. Nd2 {[%emt 0:00:53]} e5 {[%emt 0:00:53]} 10. e4 {[%emt 0:02:12]} Qe7 {[%emt 0:00:15] White is slightly better.} 11. f4 {[%emt 0:01:06]} c5 {[%emt 0:04:37]} (11... exf4 $11 12. Rxf4 O-O) 12. dxe5 {[%emt 0:26:18]} (12. fxe5 $16 dxe5 13. d5) 12... dxe5 $11 {[%emt 0:00:19]} 13. f5 {[%emt 0:00:04]} O-O-O {[%emt 0:03:42]} 14. Qf3 {[%emt 0:01:24]} Ne8 {[%emt 0:18:47]} 15. Re1 {[%emt 0:03:21]} Ndf6 {[%emt 0:03:25]} 16. Nf1 {[%emt 0:00:31]} h6 {[%emt 0:00:10]} (16... Qd7 $15 17. Bc2 Nd6) 17. a4 {[%emt 0:09:51]} a5 {[%emt 0:08:33]} 18. g4 $2 {[%emt 0:00:17] [#] This costs White the game.} (18. Rb1 $11 {and White stays safe.}) 18... Nxg4 $1 $19 {[%emt 0:07:50][%mdl 512]} 19. Rb1 {[%emt 0:14:16]} Kc7 {[%emt 0:00:28]} 20. Qxg4 {[%emt 0:02:27]} Rxd3 {[%emt 0:00:10]} 21. Qe2 {[%emt 0:00:24]} Rd6 {[%emt 0:00:33] Threatens to win with ...Nf6.} (21... Rxc3 22. Qb2 Rxc4 23. Qxb6+ Kb8 24. Ba3 $11) 22. Ne3 {[%emt 0:01:20]} Bxe4 {[%emt 0:25:23]} 23. Nd5+ {[%emt 0:00:12]} Rxd5 $1 {[%emt 0:00:12]} ({Don't take} 23... Bxd5 24. cxd5 f6 (24... Rxd5 25. Qa6 $11) 25. Qa6 $17) 24. Qxe4 {[%emt 0:06:25]} Nf6 {[%emt 0:01:03]} 25. Qg2 {[%emt 0:04:02] [#]} (25. Qh4 $142 Rd3 26. Bf4) 25... Rd6 $1 {[%emt 0:01:45]} 26. Bf4 {[%emt 0:00:17] [#]} Nd7 {[%emt 0:00:06]} 27. Bg3 {[%emt 0:04:10]} Rd8 {[%emt 0:05:24]} 28. Qb2 {[%emt 0:03:54]} f6 {[%emt 0:05:43] Black is clearly winning.} 29. Bf2 {[%emt 0:01:00]} g6 {[%emt 0:01:53]} 30. Qb5 {[%emt 0:02:18]} (30. fxg6 $142 Rg8 (30... f5 $2 31. Kf1 $19) 31. Rbd1) 30... gxf5 {[%emt 0:00:49] White must now prevent ...Rg8+.} 31. Qa6 {[%emt 0:03:06]} Rb8 {[%emt 0:02:13]} 32. Red1 {[%emt 0:01:35]} Qe6 {[%emt 0:02:45]} 33. Qa7+ {[%emt 0:00:58]} Rb7 {[%emt 0:00:20]} 34. Qa8 {[%emt 0:00:06]} f4 {[%emt 0:00:42]} ({Worse is} 34... Qxc4 35. Rxd6 Qg4+ 36. Kf1 Qc4+ 37. Kg1 Qg4+ 38. Kf1 Qc4+ 39. Kg1 $11) 35. Rxd6 {[%emt 0:00:23]} Qxd6 {[%emt 0:10:38] Weighted Error Value: White=0.69/Black=0.37.  Loses game:     	White=1     	---        Mistake:       	White=3     	Black=2      Inaccurate:     	White=3     	Black=1      OK:         	White=8     	Black=10     Best:        	White=2     	---        Strong:       	---       	Black=2      Brilliant:      	---       	Black=1} 0-1

[Event "125-Jahre Werder Bremen 2024"]
[Site "Bremen"]
[Date "2024.03.06"]
[Round "5.10"]
[White "Colbow, Collin"]
[Black "Wiegmann, Sascha"]
[Result "1-0"]
[ECO "B90"]
[WhiteElo "2373"]
[BlackElo "2297"]
[Annotator "TA"]
[PlyCount "83"]
[EventDate "2024.02.26"]
[EventType "swiss"]
[EventCountry "GER"]
[SourceTitle "playchess.com"]
[Source "ChessBase"]
[SourceQuality "1"]
[TimeControl "40/6000+30:1800+30"]

{[%evp 15,83,0,10,12,9,16,15,0,14,22,14,-67,-64,-75,-41,-47,0,-48,0,0,73,78,102,107,107,110,104,101,120,117,137,79,138,97,148,140,153,154,133,142,176,166,316,312,362,358,360,340,372,373,368,379,358,378,372,373,363,362,427,398,556,547,581,589,551,529,953,992,844,632]} 1. e4 {[%emt 0:05:52]} c5 {[%emt 0:00:53]} 2. Nf3 {[%emt 0:00:22]} d6 {[%emt 0:00:02]} 3. d4 {[%emt 0:00:10]} cxd4 {[%emt 0:00:02]} 4. Nxd4 {[%emt 0:00:10]} Nf6 {[%emt 0:00:01]} 5. Nc3 {[%emt 0:00:11]} a6 {[%emt 0:00:02]} 6. Bd3 {[%emt 0:00:11]} e5 {[%emt 0:02:47]} 7. Nde2 {[%emt 0:00:24]} Be7 {[%emt 0:03:39]} 8. O-O {[%emt 0:00:17]} O-O {[%emt 0:02:26]} 9. Ng3 {[%emt 0:01:52]} b5 {[%emt 0:02:30][%cal Bb7b5,Bb5b4][%mdl 32]} 10. h3 {[%emt 0:01:08]} b4 {[%emt 0:04:49]} 11. Nd5 {[%emt 0:02:39] The position is equal.} Nxd5 {[%emt 0:01:51]} 12. exd5 {[%emt 0:00:07]} f5 {[%emt 0:00:32]} 13. f4 {[%emt 0:28:44]} ({White should play} 13. a3 $11) 13... e4 $15 {[%emt 0:07:21]} 14. Bc4 {[%emt 0:00:59]} Nd7 {[%emt 0:07:27]} 15. a3 {[%emt 0:11:28][%cal Ba2a3,Ba3b4,Bb4a5,Ba5a6][%mdl 32]} Nb6 {[%emt 0:09:53]} (15... Qc7 $15 16. Be2 b3 (16... Bh4 17. Kh2 $11) 17. cxb3 Qb6+ 18. Kh2 a5) 16. Bb3 {[%emt 0:06:39]} (16. Be2 $1 $11 {feels stronger.}) 16... a5 {[%emt 0:00:20]} (16... bxa3 $15 17. Rxa3 a5) 17. axb4 $11 {[%emt 0:02:57]} Ba6 {[%emt 0:02:42]} (17... Bh4 $11 18. Kh2 a4 (18... axb4 19. Rxa8 Nxa8 20. Qd4 $16)) 18. bxa5 $16 {[%emt 0:12:44]} Bxf1 {[%emt 0:00:16]} 19. Qxf1 {[%emt 0:01:25]} Nd7 {[%emt 0:02:00]} 20. a6 {[%emt 0:01:13]} Qb6+ {[%emt 0:07:01]} 21. Kh2 {[%emt 0:00:27]} g6 {[%emt 0:00:24] [#]} 22. Bc4 $1 {[%emt 0:06:27]} Bf6 {[%emt 0:11:45][%cal Ob6c5]} 23. Ra2 {[%emt 0:02:07]} (23. c3 $142) 23... Rfb8 {[%emt 0:09:05]} ({Better is} 23... Qc5) 24. Qe2 {[%emt 0:02:01] Black must now prevent c3.} Qc5 {[%emt 0:05:27]} (24... Bd4 $142) 25. Be3 {[%emt 0:03:04]} Bd4 {[%emt 0:00:23] [#]} 26. Bxd4 {[%emt 0:01:11]} ({And not} 26. b4 Rxb4 27. c3 Qxc4 $17 (27... Rxc4 28. Bxd4 Qxd5 29. Nf1 $11)) 26... Qxd4 {[%emt 0:00:02]} 27. c3 $36 {[%emt 0:00:15][%mdl 2048] White is really pushing.} Qg7 {[%emt 0:09:17]} 28. Bb5 {[%emt 0:03:46]} Nf6 {[%emt 0:01:13]} (28... Ra7 {keeps fighting.} 29. Ra3 h5) 29. Bc6 $18 {[%emt 0:03:06]} Ra7 {[%emt 0:00:11]} 30. Qe3 {[%emt 0:00:50]} Qc7 {[%emt 0:03:44]} 31. b4 {[%emt 0:00:57][%cal Bb2b4,Bb4b5][%mdl 32]} Qb6 {[%emt 0:01:55]} 32. Qxb6 {[%emt 0:00:27]} Rxb6 {[%emt 0:00:02]} 33. b5 {[%emt 0:00:15]} Kf7 {[%emt 0:05:06]} 34. Nf1 {[%emt 0:00:23]} Ke7 {[%emt 0:00:16]} 35. Ne3 {[%emt 0:05:15]} Kd8 {[%emt 0:00:02]} 36. Nc4 {[%emt 0:01:27]} Kc7 {[%emt 0:00:01]} 37. Rb2 {[%emt 0:01:22]} Ng8 {[%emt 0:04:13]} 38. g4 {[%emt 0:00:26] White is clearly winning.} fxg4 {[%emt 0:08:10]} 39. hxg4 {[%emt 0:00:18]} Ne7 {[%emt 0:00:02]} 40. Kh3 {[%emt 0:06:17]} Nc8 {[%emt 0:02:06]} 41. Nxb6 {[%emt 0:06:22]} Nxb6 {[%emt 0:05:57]} 42. Re2 {[%emt 0:00:48] Weighted Error Value: White=0.10 (very precise) /Black=0.35.  Mistake:       	White=3     	Black=6      Inaccurate:     	---       	Black=3      OK:         	White=17    	Black=13     Best:        	White=3     	Black=1      Strong:       	White=1     	---} 1-0

[Event "125-Jahre Werder Bremen 2024"]
[Site "Bremen"]
[Date "2024.03.06"]
[Round "5.11"]
[White "Radeva, Viktoria"]
[Black "Kopylov, Michael"]
[Result "0-1"]
[ECO "B03"]
[WhiteElo "2325"]
[BlackElo "2352"]
[Annotator "RC"]
[PlyCount "64"]
[EventDate "2024.02.26"]
[EventType "swiss"]
[EventCountry "GER"]
[SourceTitle "playchess.com"]
[Source "ChessBase"]
[SourceQuality "1"]
[TimeControl "40/6000+30:1800+30"]

1. e4 {[%emt 0:00:03]} Nf6 {[%emt 0:00:13]} 2. e5 {[%emt 0:00:06]} Nd5 {[%emt 0:00:05]} 3. c4 {[%emt 0:00:19]} Nb6 {[%emt 0:00:06]} 4. d4 {[%emt 0:00:04]} d6 {[%emt 0:00:05]} 5. exd6 {[%emt 0:00:07]} cxd6 {[%emt 0:02:11]} 6. Nc3 {[%emt 0:00:24]} g6 {[%emt 0:00:18]} 7. Be3 {[%emt 0:00:10]} Bg7 {[%emt 0:00:15]} 8. Rc1 {[%emt 0:00:14]} O-O {[%emt 0:00:16]} 9. b3 {[%emt 0:00:28]} d5 {[%emt 0:00:33]} 10. c5 {[%emt 0:06:23]} e5 {[%emt 0:00:13]} 11. cxb6 {[%emt 0:09:34]} Nc6 {[%emt 0:00:06]} 12. Nf3 {[%emt 0:08:46]} Bg4 {[%emt 0:03:10]} 13. Bb5 {[%emt 0:21:42]} Bxf3 {[%emt 0:23:09]} 14. gxf3 {[%emt 0:05:26]} exd4 {[%emt 0:03:23]} 15. Bxc6 {[%emt 0:00:53]} bxc6 {[%emt 0:04:06]} 16. Bxd4 {[%emt 0:02:15]} Bxd4 {[%emt 0:01:14]} 17. Qxd4 {[%emt 0:00:07]} Qg5 {[%emt 0:00:14]} 18. Ne2 {[%emt 0:14:02]} Rfe8 {[%emt 0:07:15]} 19. Kf1 {[%emt 0:02:04]} axb6 {[%emt 0:10:24]} 20. a4 {[%emt 0:11:52]} Qf5 {[%emt 0:20:40]} 21. Ng3 {[%emt 0:10:35]} Qh3+ {[%emt 0:00:42]} 22. Kg1 {[%emt 0:00:04]} h5 {[%emt 0:00:35]} 23. Qd3 {[%emt 0:05:21]} h4 {[%emt 0:07:41]} 24. Qd4 {[%emt 0:04:53]} Re6 {[%emt 0:11:39]} 25. Nf1 {[%emt 0:01:13]} Qxf3 {[%emt 0:01:10]} 26. Rc3 {[%emt 0:02:05]} Qh5 {[%emt 0:01:35]} 27. Ne3 {[%emt 0:00:50]} h3 {[%emt 0:00:36]} 28. Kf1 {[%emt 0:00:43]} Rae8 {[%emt 0:01:24]} 29. Rc1 {[%emt 0:01:52]} Qf3 {[%emt 0:01:34]} 30. Rg1 {[%emt 0:02:06]} Rxe3 {[%emt 0:00:20]} 31. Rg3 {[%emt 0:00:19]} Qh1+ {[%emt 0:00:45]} 32. Rg1 {[%emt 0:00:03]} Qxg1+ {[%emt 0:00:12]} 0-1

[Event "125-Jahre Werder Bremen 2024"]
[Site "Bremen"]
[Date "2024.03.06"]
[Round "5.12"]
[White "Guichard, Pauline"]
[Black "Pruijssers, Roeland"]
[Result "1/2-1/2"]
[ECO "D35"]
[WhiteElo "2385"]
[BlackElo "2537"]
[Annotator "TA"]
[PlyCount "66"]
[EventDate "2024.02.26"]
[EventType "swiss"]
[EventCountry "GER"]
[SourceTitle "playchess.com"]
[Source "ChessBase"]
[SourceQuality "1"]
[TimeControl "40/6000+30:1800+30"]

{[%evp 15,66,13,24,6,22,23,27,19,24,6,10,5,12,0,22,33,33,-8,0,-5,0,-26,-6,-15,-27,-36,-5,-9,-14,-39,-14,-22,0,0,0,0,0,0,-2,-1,0,0,0,0,0,0,0,0,0,0,0,0,0]} 1. d4 {[%emt 0:00:04]} d5 {[%emt 0:00:09]} 2. c4 {[%emt 0:00:09]} e6 {[%emt 0:00:07]} 3. Nc3 {[%emt 0:00:11]} Nf6 {[%emt 0:00:08]} 4. cxd5 {[%emt 0:00:14]} exd5 {[%emt 0:00:11]} 5. Bg5 {[%emt 0:00:10]} c6 {[%emt 0:00:09]} 6. e3 {[%emt 0:00:13]} Be7 {[%emt 0:00:09]} 7. Bd3 {[%emt 0:00:15]} Nbd7 {[%emt 0:00:20]} 8. Nge2 {[%emt 0:01:10]} h6 {[%emt 0:01:37]} 9. Bh4 {[%emt 0:00:58]} Nh5 {[%emt 0:01:05]} 10. Bxe7 {[%emt 0:01:29]} Qxe7 {[%emt 0:00:08]} 11. Qd2 {[%emt 0:00:12] White has an edge.} Nb6 {[%emt 0:01:09]} 12. O-O-O {[%emt 0:19:21]} Be6 {[%emt 0:00:48]} 13. Kb1 {[%emt 0:04:53]} O-O-O {[%emt 0:00:28]} 14. f3 {[%emt 0:05:49]} Kb8 {[%emt 0:09:09]} 15. g4 {[%emt 0:05:52]} Nf6 {[%emt 0:02:26]} 16. Nc1 {[%emt 0:08:39][%cal Be2c1,Bc1b3,Bb3c5][%mdl 32]} Ne8 {[%emt 0:11:44]} 17. Nb3 {[%emt 0:02:04]} Nd6 {[%emt 0:01:23]} 18. Nc5 {[%emt 0:02:45]} h5 {[%emt 0:20:29]} 19. h3 {[%emt 0:01:23]} Bc8 {[%emt 0:10:56]} 20. Qc1 {[%emt 0:02:16]} Rde8 {[%emt 0:01:33]} 21. e4 {[%emt 0:02:28]} dxe4 {[%emt 0:05:07]} 22. N5xe4 {[%emt 0:03:19]} Nxe4 {[%emt 0:05:20]} 23. Bxe4 {[%emt 0:01:55] The position is equal.} Rd8 {[%emt 0:09:05]} 24. Rhe1 {[%emt 0:11:20][%cal Oe4c6]} Qc7 {[%emt 0:13:30]} 25. d5 {[%emt 0:01:28]} cxd5 {[%emt 0:00:10]} 26. Nxd5 {[%emt 0:00:53]} Qxc1+ {[%emt 0:00:13]} 27. Kxc1 {[%emt 0:00:06] [#]} f5 $1 {[%emt 0:04:59]} 28. gxf5 {[%emt 0:05:40] Hoping for Nxb6.} Nxd5 {[%emt 0:00:08]} 29. Rxd5 {[%emt 0:12:40]} Rxd5 {[%emt 0:00:08]} 30. Bxd5 {[%emt 0:00:03]} Bxf5 $11 {[%emt 0:00:07] KRB-KRB} 31. h4 {[%emt 0:00:08]} Rc8+ {[%emt 0:05:00]} 32. Kd1 {[%emt 0:00:14]} Kc7 {[%emt 0:03:38]} 33. Be4 {[%emt 0:05:26]} Bxe4 {[%emt 0:02:11] An interesting draw.   Weighted Error Value: White=0.06 (flawless) /Black=0.04 (flawless) .  Inaccurate:     	White=2     	Black=1      OK:         	White=7     	Black=12     Best:        	---       	Black=1} 1/2-1/2